[Event "3rd FIDE WCCC Blitz U10 2019"]
[Site "Minsk"]
[Date "2019.08.18"]
[Round "1.1"]
[White "Usov, Aleksandr E."]
[Black "Kachalov, Vsevolod"]
[Result "1-0"]
[ECO "C55"]
[WhiteElo "1919"]
[BlackElo "1224"]
[Annotator "NA"]
[PlyCount "51"]
[EventDate "2019.08.18"]
[EventType "swiss"]
[EventCountry "BLR"]
[SourceTitle "playchess.com"]
[Source "ChessBase"]
[SourceQuality "1"]
[TimeControl "300+2"]

1. e4 {[%emt 0:00:00]} e5 {[%emt 0:00:00]} 2. Nf3 {[%emt 0:00:00]} Nc6 {[%emt 0:00:00]} 3. d4 {[%emt 0:00:01]} exd4 {[%emt 0:00:01]} 4. Bc4 {[%emt 0:00:01]} Nf6 {[%emt 0:00:03]} 5. e5 {[%emt 0:00:00]} d5 {[%emt 0:00:03]} 6. Bb5 {[%emt 0:00:01]} Ne4 {[%emt 0:00:02]} 7. Nxd4 {[%emt 0:00:01]} Bd7 {[%emt 0:00:03]} 8. Bxc6 {[%emt 0:00:01]} bxc6 {[%emt 0:00:03]} 9. O-O {[%emt 0:00:02]} Bc5 {[%emt 0:00:06]} 10. f3 {[%emt 0:00:01]} Ng5 {[%emt 0:00:08]} 11. Be3 {[%emt 0:00:01]} O-O {[%emt 0:00:03]} 12. f4 {[%emt 0:00:01]} Ne4 {[%emt 0:00:04]} 13. Nd2 Be6 {[%emt 0:00:08]} 14. Nxe4 {[%emt 0:00:09]} dxe4 15. Kh1 {[%emt 0:00:26]} Qd7 {[%emt 0:00:07]} 16. Nxe6 {[%emt 0:00:05]} Qxe6 {[%emt 0:00:09]} 17. Bxc5 {[%emt 0:00:01]} Rad8 {[%emt 0:00:02]} 18. Qe2 {[%emt 0:00:01]} f5 {[%emt 0:00:13]} 19. Bxf8 {[%emt 0:00:01]} Rxf8 {[%emt 0:00:02]} 20. Rad1 {[%emt 0:00:01]} Qxa2 {[%emt 0:00:10]} 21. b3 {[%emt 0:00:01]} Qa5 {[%emt 0:00:13]} 22. Qc4+ {[%emt 0:00:01]} Kh8 {[%emt 0:00:03]} 23. Qf7 {[%emt 0:00:01]} Rg8 {[%emt 0:00:05]} 24. e6 {[%emt 0:00:04]} g6 25. Rd7 {[%emt 0:00:04]} Qc3 {[%emt 0:00:24]} 26. Qxh7# {[%emt 0:00:03]} 1-0

[Event "3rd FIDE WCCC Blitz U10 2019"]
[Site "Minsk"]
[Date "2019.08.18"]
[Round "1.2"]
[White "Gizunov, Yaroslav"]
[Black "Samunenkov, Ihor"]
[Result "0-1"]
[ECO "B32"]
[WhiteElo "1108"]
[BlackElo "1964"]
[Annotator "NA"]
[PlyCount "55"]
[EventDate "2019.08.18"]
[EventType "swiss"]
[EventCountry "BLR"]
[SourceTitle "playchess.com"]
[Source "ChessBase"]
[SourceQuality "1"]
[TimeControl "300+2"]

1. e4 {[%emt 0:00:00]} c5 {[%emt 0:00:00]} 2. Nf3 {[%emt 0:00:00]} Nc6 {[%emt 0:00:07]} 3. d4 {[%emt 0:00:01]} cxd4 {[%emt 0:00:01]} 4. Nxd4 {[%emt 0:00:02]} g6 {[%emt 0:00:01]} 5. Be3 {[%emt 0:00:05]} Bg7 {[%emt 0:00:03]} 6. Nc3 {[%emt 0:00:02]} Nf6 {[%emt 0:00:01]} 7. f3 {[%emt 0:00:01]} O-O {[%emt 0:00:03]} 8. Qd2 {[%emt 0:00:02]} d5 {[%emt 0:00:09]} 9. Nxc6 {[%emt 0:00:47]} bxc6 {[%emt 0:00:03]} 10. O-O-O {[%emt 0:00:04]} Qc7 {[%emt 0:01:35]} 11. exd5 {[%emt 0:00:55]} cxd5 {[%emt 0:00:04]} 12. Nxd5 {[%emt 0:00:10]} Nxd5 {[%emt 0:00:36]} 13. Qxd5 {[%emt 0:00:03]} Bf5 {[%emt 0:00:18]} 14. Qc5 {[%emt 0:00:17]} Qxc5 {[%emt 0:00:23]} 15. Bxc5 {[%emt 0:00:16]} Rfc8 {[%emt 0:00:10]} 16. b4 {[%emt 0:01:19]} a5 {[%emt 0:00:22]} 17. Bd3 {[%emt 0:00:45]} axb4 {[%emt 0:00:25]} 18. Bxb4 {[%emt 0:00:17]} Rxa2 {[%emt 0:00:11]} 19. c3 {[%emt 0:00:26]} Bxd3 {[%emt 0:00:31]} 20. Rxd3 {[%emt 0:00:04]} Ra1+ {[%emt 0:00:01]} 21. Kc2 {[%emt 0:00:01]} Rxh1 {[%emt 0:00:02]} 22. Kb3 {[%emt 0:00:01]} e6 {[%emt 0:00:05]} 23. c4 {[%emt 0:00:04]} Rb1+ {[%emt 0:00:03]} 24. Ka4 {[%emt 0:00:01]} Ra8+ {[%emt 0:00:05]} 25. Kb5 {[%emt 0:00:02]} Rb8+ {[%emt 0:00:01]} 26. Kc5 {[%emt 0:00:01]} R1xb4 {[%emt 0:00:05]} 27. g3 {[%emt 0:00:04]} R4b7 {[%emt 0:00:05]} 28. f4 {[%emt 0:00:00]} 0-1

[Event "3rd FIDE WCCC Blitz U10 2019"]
[Site "Minsk"]
[Date "2019.08.18"]
[Round "1.3"]
[White "Vershinin, Igor"]
[Black "Sitnikov, Arseni"]
[Result "1-0"]
[ECO "A00"]
[WhiteElo "2188"]
[BlackElo "1184"]
[Annotator "ChessBase"]
[PlyCount "36"]
[EventDate "2019.08.18"]
[EventType "swiss"]
[EventCountry "BLR"]
[SourceTitle "playchess.com"]
[Source "ChessBase"]
[SourceQuality "1"]
[TimeControl "300+2"]

1. a3 {[%emt 0:00:00]} e5 {[%emt 0:00:04]} 2. c4 {[%emt 0:00:00]} Nf6 {[%emt 0:00:02]} 3. Nc3 {[%emt 0:00:01]} c6 {[%emt 0:00:06]} 4. d4 {[%emt 0:00:02]} exd4 {[%emt 0:00:11]} 5. Qxd4 {[%emt 0:00:02]} d5 {[%emt 0:00:04]} 6. cxd5 {[%emt 0:00:02]} cxd5 {[%emt 0:00:01]} 7. Bg5 {[%emt 0:00:02]} Be6 {[%emt 0:00:14]} 8. Bxf6 gxf6 {[%emt 0:00:01]} 9. e3 {[%emt 0:00:17]} Nc6 {[%emt 0:00:02]} 10. Qd2 {[%emt 0:00:05]} a6 {[%emt 0:00:10]} 11. Nf3 {[%emt 0:00:02]} Bc5 {[%emt 0:00:08]} 12. Be2 {[%emt 0:00:16]} Rc8 {[%emt 0:00:37]} 13. O-O {[%emt 0:00:02]} Rg8 {[%emt 0:00:02]} 14. g3 {[%emt 0:00:17]} Be7 {[%emt 0:00:19]} 15. Rfd1 {[%emt 0:00:09]} h5 {[%emt 0:01:47]} 16. h4 {[%emt 0:00:10]} f5 {[%emt 0:00:33]} 17. Nxd5 {[%emt 0:00:04]} Bxh4 {[%emt 0:00:42]} 18. Nf4 {[%emt 0:00:24]} Bf6 {[%emt 0:00:00]} 1-0

[Event "3rd FIDE WCCC Blitz U10 2019"]
[Site "Minsk"]
[Date "2019.08.18"]
[Round "1.4"]
[White "Kovaler, Filipp"]
[Black "Koshulyan, Egor A."]
[Result "0-1"]
[ECO "B30"]
[WhiteElo "1266"]
[BlackElo "1872"]
[Annotator "NA"]
[PlyCount "62"]
[EventDate "2019.08.18"]
[EventType "swiss"]
[EventCountry "BLR"]
[SourceTitle "playchess.com"]
[Source "ChessBase"]
[SourceQuality "1"]
[TimeControl "300+2"]

1. e4 {[%emt 0:00:00]} c5 {[%emt 0:00:00]} 2. Nf3 {[%emt 0:00:00]} Nc6 {[%emt 0:00:00]} 3. d3 {[%emt 0:00:01]} e6 {[%emt 0:00:03]} 4. Nbd2 {[%emt 0:00:02]} g6 {[%emt 0:00:08]} 5. Be2 {[%emt 0:00:01]} Bg7 {[%emt 0:00:00]} 6. O-O {[%emt 0:00:02]} Nge7 {[%emt 0:00:03]} 7. c3 {[%emt 0:00:02]} d5 {[%emt 0:00:07]} 8. Qc2 {[%emt 0:00:16]} O-O {[%emt 0:00:06]} 9. Re1 {[%emt 0:00:10]} Rb8 {[%emt 0:00:13]} 10. Nf1 {[%emt 0:00:48]} b5 {[%emt 0:00:06]} 11. a3 {[%emt 0:00:24]} a5 {[%emt 0:00:38]} 12. Ng3 {[%emt 0:00:22]} b4 {[%emt 0:00:03]} 13. cxb4 {[%emt 0:00:45]} cxb4 {[%emt 0:00:01]} 14. Rb1 {[%emt 0:00:19]} Ba6 {[%emt 0:00:11]} 15. Bd2 {[%emt 0:00:11]} Qd7 {[%emt 0:00:11]} 16. Rec1 {[%emt 0:00:08]} Rfc8 {[%emt 0:00:03]} 17. Qd1 {[%emt 0:00:02]} Bb5 {[%emt 0:00:51]} 18. a4 {[%emt 0:00:43]} Ba6 {[%emt 0:00:02]} 19. b3 {[%emt 0:00:04]} Nd8 {[%emt 0:00:06]} 20. h3 {[%emt 0:00:26]} Nb7 {[%emt 0:00:20]} 21. Qf1 {[%emt 0:00:32]} Rxc1 {[%emt 0:00:31]} 22. Rxc1 Rc8 23. Rxc8+ {[%emt 0:00:10]} Qxc8 {[%emt 0:00:01]} 24. Qc1 {[%emt 0:00:02]} Qxc1+ {[%emt 0:00:02]} 25. Bxc1 {[%emt 0:00:01]} Nc5 {[%emt 0:00:00]} 26. Bd1 {[%emt 0:00:12]} Bxd3 {[%emt 0:00:10]} 27. Be3 {[%emt 0:00:04]} Nxe4 {[%emt 0:00:01]} 28. Nxe4 {[%emt 0:00:02]} dxe4 {[%emt 0:00:00]} 29. Nd4 {[%emt 0:00:01]} Be5 {[%emt 0:00:29]} 30. Ne2 {[%emt 0:00:03]} Nd5 {[%emt 0:00:03]} 31. Bd4 {[%emt 0:00:05]} Bxe2 {[%emt 0:00:03]} 0-1

[Event "3rd FIDE WCCC Blitz U10 2019"]
[Site "Minsk"]
[Date "2019.08.18"]
[Round "1.5"]
[White "Vetokhin, Savva"]
[Black "Plehanov, Daniil"]
[Result "1-0"]
[ECO "B18"]
[WhiteElo "2016"]
[BlackElo "1015"]
[Annotator "NA"]
[PlyCount "43"]
[EventDate "2019.08.18"]
[EventType "swiss"]
[EventCountry "BLR"]
[SourceTitle "playchess.com"]
[Source "ChessBase"]
[SourceQuality "1"]
[TimeControl "300+2"]

1. e4 {[%emt 0:00:00]} c6 {[%emt 0:00:02]} 2. d4 {[%emt 0:00:00]} d5 {[%emt 0:00:02]} 3. Nc3 {[%emt 0:00:00]} dxe4 {[%emt 0:00:02]} 4. Nxe4 {[%emt 0:00:00]} Bf5 {[%emt 0:00:01]} 5. Ng3 {[%emt 0:00:01]} Bg6 {[%emt 0:00:03]} 6. Nf3 {[%emt 0:00:03]} e6 {[%emt 0:00:04]} 7. h4 {[%emt 0:00:06]} h6 {[%emt 0:00:05]} 8. h5 {[%emt 0:00:04]} Bh7 {[%emt 0:00:08]} 9. Bd3 Bxd3 10. Qxd3 {[%emt 0:00:01]} Bd6 {[%emt 0:00:04]} 11. Ne4 {[%emt 0:00:01]} Bc7 {[%emt 0:00:04]} 12. Be3 {[%emt 0:00:03]} Nf6 {[%emt 0:00:11]} 13. O-O-O {[%emt 0:00:29]} O-O {[%emt 0:00:26]} 14. Rdg1 {[%emt 0:00:28]} Ng4 {[%emt 0:00:19]} 15. Rh4 {[%emt 0:00:16]} Nxe3 {[%emt 0:00:48]} 16. Qxe3 {[%emt 0:00:00]} Nd7 {[%emt 0:01:02]} 17. g4 {[%emt 0:00:06]} Nf6 {[%emt 0:00:33]} 18. Nxf6+ {[%emt 0:00:14]} Qxf6 {[%emt 0:00:24]} 19. g5 {[%emt 0:00:01]} hxg5 {[%emt 0:00:23]} 20. Rxg5 {[%emt 0:00:05]} Qh6 {[%emt 0:00:22]} 21. Rhg4 {[%emt 0:00:14]} Kh8 {[%emt 0:00:22]} 22. Ne5 1-0

[Event "3rd FIDE WCCC Blitz U10 2019"]
[Site "Minsk"]
[Date "2019.08.18"]
[Round "2.1"]
[White "Bhagat Kush"]
[Black "Usov, Aleksandr E."]
[Result "0-1"]
[ECO "D00"]
[WhiteElo "1882"]
[BlackElo "1919"]
[Annotator "NA"]
[PlyCount "124"]
[EventDate "2019.08.18"]
[EventType "swiss"]
[EventCountry "BLR"]
[SourceTitle "playchess.com"]
[Source "ChessBase"]
[SourceQuality "1"]
[TimeControl "300+2"]

1. d4 {[%emt 0:00:00]} d5 {[%emt 0:00:00]} 2. Bf4 {[%emt 0:00:00]} Nf6 {[%emt 0:00:02]} 3. e3 {[%emt 0:00:00]} c5 {[%emt 0:00:00]} 4. c3 {[%emt 0:00:01]} Nc6 {[%emt 0:00:01]} 5. Nd2 {[%emt 0:00:01]} Bf5 {[%emt 0:00:01]} 6. Qb3 {[%emt 0:00:02]} Qd7 {[%emt 0:00:06]} 7. Bb5 {[%emt 0:00:03]} e6 {[%emt 0:00:02]} 8. Ngf3 {[%emt 0:00:01]} c4 {[%emt 0:00:01]} 9. Qa4 {[%emt 0:00:05]} Bd6 {[%emt 0:00:21]} 10. Bxd6 {[%emt 0:00:12]} Qxd6 {[%emt 0:00:01]} 11. Ne5 {[%emt 0:00:01]} O-O {[%emt 0:00:21]} 12. f4 {[%emt 0:00:29]} Ne4 {[%emt 0:00:14]} 13. Ndf3 {[%emt 0:00:04]} Nxe5 {[%emt 0:00:07]} 14. fxe5 {[%emt 0:00:24]} Qc7 {[%emt 0:00:14]} 15. Qb4 {[%emt 0:00:54]} a6 16. Ba4 {[%emt 0:00:03]} b5 {[%emt 0:00:36]} 17. Bc2 {[%emt 0:00:52]} a5 {[%emt 0:00:15]} 18. Qxb5 {[%emt 0:00:49]} Rfb8 {[%emt 0:00:03]} 19. Qa4 {[%emt 0:00:02]} Rxb2 {[%emt 0:00:03]} 20. Bxe4 {[%emt 0:00:05]} Bxe4 {[%emt 0:00:09]} 21. O-O {[%emt 0:00:04]} Qe7 {[%emt 0:00:33]} 22. Rf2 {[%emt 0:00:25]} Qb7 {[%emt 0:01:08]} 23. Raf1 {[%emt 0:00:27]} Bd3 {[%emt 0:00:05]} 24. Rxb2 {[%emt 0:00:20]} Qxb2 {[%emt 0:00:02]} 25. Qc6 {[%emt 0:00:03]} Rf8 {[%emt 0:00:14]} 26. Re1 {[%emt 0:00:08]} Qxc3 {[%emt 0:00:02]} 27. Qa4 {[%emt 0:00:04]} Bc2 {[%emt 0:00:05]} 28. Qb5 {[%emt 0:00:04]} Be4 {[%emt 0:00:01]} 29. Re2 {[%emt 0:00:05]} Qa1+ {[%emt 0:00:26]} 30. Re1 {[%emt 0:00:00]} Qxa2 31. Qc5 {[%emt 0:00:04]} Bxf3 {[%emt 0:00:11]} 32. gxf3 {[%emt 0:00:01]} Qd2 {[%emt 0:00:00]} 33. Kf1 {[%emt 0:00:01]} Qxh2 {[%emt 0:00:05]} 34. Qxa5 {[%emt 0:00:01]} Qg3 {[%emt 0:00:05]} 35. Ke2 {[%emt 0:00:02]} Qg2+ {[%emt 0:00:01]} 36. Kd1 {[%emt 0:00:02]} Qxf3+ {[%emt 0:00:02]} 37. Re2 {[%emt 0:00:00]} Qf1+ {[%emt 0:00:02]} 38. Re1 {[%emt 0:00:01]} Qd3+ {[%emt 0:00:01]} 39. Kc1 {[%emt 0:00:01]} Rb8 {[%emt 0:00:04]} 40. Qa2 {[%emt 0:00:01]} Qc3+ 41. Kd1 h6 {[%emt 0:00:21]} 42. Qc2 {[%emt 0:00:05]} Qxc2+ {[%emt 0:00:06]} 43. Kxc2 {[%emt 0:00:01]} h5 {[%emt 0:00:00]} 44. Kc3 {[%emt 0:00:00]} Rb3+ {[%emt 0:00:01]} 45. Kc2 {[%emt 0:00:00]} g6 {[%emt 0:00:01]} 46. Kd2 {[%emt 0:00:01]} Kg7 {[%emt 0:00:01]} 47. Kc2 {[%emt 0:00:02]} h4 {[%emt 0:00:00]} 48. Kd2 {[%emt 0:00:01]} g5 {[%emt 0:00:01]} 49. Ke2 {[%emt 0:00:02]} g4 {[%emt 0:00:01]} 50. Kf2 {[%emt 0:00:01]} Rb2+ {[%emt 0:00:01]} 51. Kg1 {[%emt 0:00:01]} g3 {[%emt 0:00:00]} 52. e4 {[%emt 0:00:06]} h3 {[%emt 0:00:02]} 53. exd5 {[%emt 0:00:03]} exd5 {[%emt 0:00:01]} 54. e6 {[%emt 0:00:01]} fxe6 {[%emt 0:00:01]} 55. Ra1 {[%emt 0:00:05]} Kg6 {[%emt 0:00:02]} 56. Re1 {[%emt 0:00:01]} Kf5 {[%emt 0:00:07]} 57. Rf1+ {[%emt 0:00:01]} Kg4 {[%emt 0:00:01]} 58. Re1 {[%emt 0:00:01]} h2+ {[%emt 0:00:10]} 59. Kh1 {[%emt 0:00:00]} Kh3 {[%emt 0:00:07]} 60. Rg1 {[%emt 0:00:03]} g2+ {[%emt 0:00:03]} 61. Rxg2 {[%emt 0:00:02]} Rb1+ {[%emt 0:00:00]} 62. Rg1 {[%emt 0:00:01]} Rxg1# {[%emt 0:00:01]} 0-1

[Event "3rd FIDE WCCC Blitz U10 2019"]
[Site "Minsk"]
[Date "2019.08.18"]
[Round "2.2"]
[White "Samunenkov, Ihor"]
[Black "Sepahpour, Shervine"]
[Result "1-0"]
[ECO "A45"]
[WhiteElo "1964"]
[BlackElo "1332"]
[Annotator "NA"]
[PlyCount "139"]
[EventDate "2019.08.18"]
[EventType "swiss"]
[EventCountry "BLR"]
[SourceTitle "playchess.com"]
[Source "ChessBase"]
[SourceQuality "1"]
[TimeControl "300+2"]

1. d4 {[%emt 0:00:03]} Nf6 {[%emt 0:00:00]} 2. g3 {[%emt 0:00:04]} g6 {[%emt 0:00:01]} 3. Bg2 {[%emt 0:00:01]} Bg7 {[%emt 0:00:01]} 4. e4 {[%emt 0:00:01]} d6 {[%emt 0:00:01]} 5. Nc3 {[%emt 0:00:01]} O-O {[%emt 0:00:02]} 6. Nge2 {[%emt 0:00:01]} e5 {[%emt 0:00:03]} 7. h3 {[%emt 0:00:06]} Nc6 {[%emt 0:00:04]} 8. Be3 {[%emt 0:00:01]} Bd7 {[%emt 0:00:03]} 9. O-O {[%emt 0:00:05]} Re8 {[%emt 0:00:04]} 10. Qd2 {[%emt 0:00:14]} a6 {[%emt 0:00:15]} 11. a4 {[%emt 0:00:09]} Rb8 {[%emt 0:00:05]} 12. g4 {[%emt 0:00:19]} b5 {[%emt 0:00:09]} 13. axb5 {[%emt 0:00:19]} axb5 {[%emt 0:00:02]} 14. d5 {[%emt 0:00:11]} Ne7 {[%emt 0:00:03]} 15. Ng3 {[%emt 0:00:02]} c6 {[%emt 0:00:06]} 16. g5 {[%emt 0:00:10]} Nh5 {[%emt 0:00:15]} 17. Nxh5 {[%emt 0:00:04]} gxh5 {[%emt 0:00:01]} 18. dxc6 {[%emt 0:00:02]} Bxc6 {[%emt 0:00:05]} 19. Rad1 {[%emt 0:00:06]} Ng6 {[%emt 0:00:44]} 20. Qxd6 {[%emt 0:00:07]} Bb7 {[%emt 0:00:42]} 21. Qxd8 {[%emt 0:00:22]} Rbxd8 {[%emt 0:00:02]} 22. Nxb5 {[%emt 0:00:03]} Ba6 {[%emt 0:00:03]} 23. c4 {[%emt 0:00:22]} Bxb5 {[%emt 0:00:12]} 24. cxb5 {[%emt 0:00:01]} Rb8 {[%emt 0:00:01]} 25. b6 {[%emt 0:00:02]} Nf4 {[%emt 0:00:07]} 26. Bf3 {[%emt 0:01:15]} Nxh3+ {[%emt 0:00:04]} 27. Kh2 {[%emt 0:00:01]} Nf4 {[%emt 0:00:02]} 28. Rd7 {[%emt 0:00:05]} Ng6 {[%emt 0:00:23]} 29. Bxh5 {[%emt 0:00:12]} Re7 {[%emt 0:00:04]} 30. Rxe7 {[%emt 0:00:08]} Nxe7 {[%emt 0:00:02]} 31. Rc1 {[%emt 0:00:01]} f5 {[%emt 0:00:14]} 32. gxf6 {[%emt 0:00:09]} Bxf6 {[%emt 0:00:03]} 33. Rc7 {[%emt 0:00:04]} Nc8 {[%emt 0:00:11]} 34. b7 {[%emt 0:00:22]} Nd6 {[%emt 0:00:03]} 35. Rc6 {[%emt 0:00:01]} Be7 {[%emt 0:00:25]} 36. Bc5 {[%emt 0:00:21]} Bg5 {[%emt 0:00:41]} 37. Bxd6 {[%emt 0:00:13]} Bf4+ {[%emt 0:00:02]} 38. Kg2 {[%emt 0:00:02]} Rxb7 {[%emt 0:00:02]} 39. Rc8+ {[%emt 0:00:02]} Kg7 {[%emt 0:00:01]} 40. Rc7+ {[%emt 0:00:02]} Rxc7 {[%emt 0:00:01]} 41. Bxc7 {[%emt 0:00:01]} Kf6 {[%emt 0:00:02]} 42. Bg4 {[%emt 0:00:05]} Kg5 {[%emt 0:00:04]} 43. f3 {[%emt 0:00:01]} Bd2 {[%emt 0:00:04]} 44. Bxe5 {[%emt 0:00:04]} h5 {[%emt 0:00:00]} 45. Bh3 {[%emt 0:00:04]} Bb4 {[%emt 0:00:08]} 46. f4+ {[%emt 0:00:03]} Kg6 {[%emt 0:00:03]} 47. f5+ {[%emt 0:00:01]} Kf7 {[%emt 0:00:03]} 48. Kf3 {[%emt 0:00:04]} h4 {[%emt 0:00:04]} 49. Bd4 {[%emt 0:00:01]} Ke7 {[%emt 0:00:05]} 50. e5 {[%emt 0:00:01]} Kf7 {[%emt 0:00:02]} 51. e6+ {[%emt 0:00:01]} Ke7 {[%emt 0:00:04]} 52. f6+ {[%emt 0:00:01]} Kf8 {[%emt 0:00:00]} 53. e7+ {[%emt 0:00:03]} Ke8 {[%emt 0:00:03]} 54. Be6 {[%emt 0:00:08]} h3 {[%emt 0:00:04]} 55. Bxh3 {[%emt 0:00:03]} Bxe7 {[%emt 0:00:09]} 56. fxe7 {[%emt 0:00:02]} Kxe7 {[%emt 0:00:01]} 57. Be5 {[%emt 0:00:06]} Kd8 {[%emt 0:00:04]} 58. b4 {[%emt 0:00:01]} Ke7 {[%emt 0:00:03]} 59. b5 {[%emt 0:00:01]} Kd8 {[%emt 0:00:01]} 60. b6 {[%emt 0:00:01]} Ke7 {[%emt 0:00:01]} 61. b7 {[%emt 0:00:01]} Kf7 {[%emt 0:00:02]} 62. b8=Q {[%emt 0:00:03]} Kg6 {[%emt 0:00:01]} 63. Qg8+ {[%emt 0:00:03]} Kh5 {[%emt 0:00:02]} 64. Qg4+ {[%emt 0:00:08]} Kh6 {[%emt 0:00:01]} 65. Bf4+ {[%emt 0:00:04]} Kh7 {[%emt 0:00:02]} 66. Qh5+ {[%emt 0:00:01]} Kg7 {[%emt 0:00:02]} 67. Be5+ {[%emt 0:00:02]} Kf8 {[%emt 0:00:02]} 68. Bf6 {[%emt 0:00:03]} Kg8 {[%emt 0:00:03]} 69. Be6+ {[%emt 0:00:01]} Kf8 {[%emt 0:00:03]} 70. Qh8# {[%emt 0:00:01]} 1-0

[Event "3rd FIDE WCCC Blitz U10 2019"]
[Site "Minsk"]
[Date "2019.08.18"]
[Round "2.3"]
[White "Khadiev, Timur"]
[Black "Vershinin, Igor"]
[Result "0-1"]
[ECO "B34"]
[WhiteElo "1132"]
[BlackElo "2188"]
[Annotator "NA"]
[PlyCount "90"]
[EventDate "2019.08.18"]
[EventType "swiss"]
[EventCountry "BLR"]
[SourceTitle "playchess.com"]
[Source "ChessBase"]
[SourceQuality "1"]
[TimeControl "300+2"]

1. e4 {[%emt 0:00:00]} c5 {[%emt 0:00:00]} 2. Nf3 {[%emt 0:00:02]} Nc6 {[%emt 0:00:00]} 3. d4 {[%emt 0:00:00]} cxd4 {[%emt 0:00:00]} 4. Nxd4 {[%emt 0:00:01]} Nf6 {[%emt 0:00:00]} 5. Nc3 {[%emt 0:00:01]} e5 {[%emt 0:00:02]} 6. Ndb5 {[%emt 0:00:01]} d6 {[%emt 0:00:00]} 7. Be3 {[%emt 0:00:11]} a6 {[%emt 0:00:04]} 8. Na3 b5 9. Nd5 Nxd5 {[%emt 0:00:13]} 10. Qxd5 {[%emt 0:00:20]} Bb7 {[%emt 0:00:07]} 11. Qd2 {[%emt 0:00:03]} Be7 {[%emt 0:00:02]} 12. Be2 {[%emt 0:00:06]} O-O {[%emt 0:00:03]} 13. O-O {[%emt 0:00:01]} Bf6 {[%emt 0:00:08]} 14. c3 {[%emt 0:00:11]} Ne7 {[%emt 0:00:03]} 15. Bf3 {[%emt 0:00:09]} Qc7 {[%emt 0:00:05]} 16. Rad1 Rfd8 {[%emt 0:00:04]} 17. Nc2 {[%emt 0:00:15]} d5 {[%emt 0:00:10]} 18. exd5 {[%emt 0:00:03]} Bxd5 {[%emt 0:00:06]} 19. Bxd5 {[%emt 0:00:03]} Nxd5 {[%emt 0:00:02]} 20. Qe2 {[%emt 0:00:06]} Rd7 {[%emt 0:00:09]} 21. Rd2 {[%emt 0:00:03]} Rad8 {[%emt 0:00:16]} 22. Rfd1 g6 {[%emt 0:00:09]} 23. Qf3 {[%emt 0:00:41]} Nxe3 {[%emt 0:00:38]} 24. Qxe3 {[%emt 0:00:11]} Bg7 {[%emt 0:00:07]} 25. Nb4 {[%emt 0:00:12]} Qb7 {[%emt 0:00:01]} 26. Nd3 {[%emt 0:00:24]} f5 {[%emt 0:00:13]} 27. Nc5 Rxd2 {[%emt 0:00:24]} 28. Rxd2 {[%emt 0:00:15]} Qb6 {[%emt 0:00:44]} 29. Rxd8+ {[%emt 0:00:06]} Qxd8 30. Qd3 Qxd3 {[%emt 0:00:10]} 31. Nxd3 {[%emt 0:00:01]} Kf7 {[%emt 0:00:38]} 32. Kf1 {[%emt 0:00:01]} Ke7 {[%emt 0:00:02]} 33. Ke2 {[%emt 0:00:01]} Kd6 {[%emt 0:00:01]} 34. Kd2 {[%emt 0:00:13]} Bh6+ {[%emt 0:00:05]} 35. Kc2 e4 {[%emt 0:00:04]} 36. Nb4 {[%emt 0:00:25]} a5 {[%emt 0:00:01]} 37. Na6 {[%emt 0:00:01]} f4 {[%emt 0:00:19]} 38. b4 {[%emt 0:00:09]} axb4 {[%emt 0:00:08]} 39. cxb4 Kd5 {[%emt 0:00:16]} 40. Kc3 {[%emt 0:00:14]} Bg7+ {[%emt 0:00:03]} 41. Kc2 {[%emt 0:00:08]} Kc4 {[%emt 0:00:00]} 42. a3 {[%emt 0:00:01]} Bd4 {[%emt 0:00:01]} 43. f3 {[%emt 0:00:05]} e3 {[%emt 0:00:01]} 44. Nc7 {[%emt 0:00:05]} Bc3 {[%emt 0:00:33]} 45. Nd5 e2 {[%emt 0:00:06]} 0-1

[Event "3rd FIDE WCCC Blitz U10 2019"]
[Site "Minsk"]
[Date "2019.08.18"]
[Round "2.4"]
[White "Koshulyan, Egor A."]
[Black "Kasaev, Oleg"]
[Result "1-0"]
[ECO "C64"]
[WhiteElo "1872"]
[BlackElo "1396"]
[Annotator "NA"]
[PlyCount "31"]
[EventDate "2019.08.18"]
[EventType "swiss"]
[EventCountry "BLR"]
[SourceTitle "playchess.com"]
[Source "ChessBase"]
[SourceQuality "1"]
[TimeControl "300+2"]

1. e4 {[%emt 0:00:00]} e5 {[%emt 0:00:00]} 2. Nf3 {[%emt 0:00:00]} Nc6 {[%emt 0:00:00]} 3. Bb5 {[%emt 0:00:01]} Bc5 {[%emt 0:00:05]} 4. O-O {[%emt 0:00:04]} d6 {[%emt 0:00:04]} 5. c3 {[%emt 0:00:01]} Nf6 {[%emt 0:00:07]} 6. d4 {[%emt 0:00:01]} exd4 {[%emt 0:00:10]} 7. cxd4 {[%emt 0:00:01]} Bb6 {[%emt 0:00:02]} 8. d5 {[%emt 0:00:01]} Bd7 {[%emt 0:00:05]} 9. dxc6 {[%emt 0:00:00]} bxc6 {[%emt 0:00:01]} 10. Ba4 {[%emt 0:00:00]} d5 {[%emt 0:00:09]} 11. exd5 {[%emt 0:00:00]} Nxd5 {[%emt 0:00:03]} 12. Re1+ {[%emt 0:00:00]} Ne7 {[%emt 0:00:03]} 13. Qe2 {[%emt 0:00:00]} Bc5 {[%emt 0:00:06]} 14. Qe5 {[%emt 0:00:00]} Bxf2+ {[%emt 0:00:18]} 15. Kxf2 {[%emt 0:00:00]} f6 {[%emt 0:00:00]} 16. Qe2 {[%emt 0:00:00]} 1-0